bitfinex/quotes_ETHUSD_20230118
["timestamp","ask_amount","ask_price","bid_price","bid_amount"]
[1674077635889,0.3673,1531.4,1530.9,31.00406086]
[1674077636095,0.3673,1531.4,1531.0,1.0]
[1674077636470,0.3673,1531.4,1531.0,10.73192609]
[1674077636787,0.3673,1531.4,1531.0,10.79792609]
[1674077637147,0.3673,1531.4,1531.0,17.32959609]
[1674077637391,4.606,1531.5,1531.0,4.26640609]
[1674077637392,9.59565,1531.5,1531.0,4.26640609]
[1674077637609,0.066,1531.5,1531.1,2.25495923]
[1674077637771,0.74755987,1531.6,1531.1,15.31720923]
[1674077637982,0.3673,1531.5,1531.1,15.38320923]
[1674077638244,0.68155987,1531.6,1531.1,15.38320923]
[1674077638471,0.68155987,1531.7,1531.2,1.53832092]
[1674077638615,0.68155987,1531.7,1531.3,28.83598862]
[1674077638821,0.68155987,1531.7,1531.3,28.90198862]
[1674077639486,1.38948885,1531.8,1531.3,28.90198862]
[1674077639487,2.07104872,1531.8,1531.3,28.90198862]
[1674077639681,2.07104872,1531.8,1531.4,3.89019886]
[1674077639911,2.07104872,1531.8,1531.4,2.89019886]
[1674077640119,5.07104872,1531.8,1531.4,2.89019886]
[1674077640340,5.13704872,1531.8,1531.4,2.89019886]
[1674077640717,11.66544872,1531.8,1531.4,2.89019886]
[1674077640985,0.68155987,1531.7,1531.3,20.54328]
[1674077641152,6.52918,1531.6,1531.3,14.0131]
[1674077641366,6.59518,1531.6,1531.3,14.0131]
[1674077641563,13.12436,1531.6,1531.3,14.0131]
[1674077641982,19.65354,1531.6,1531.3,14.0131]
[1674077642345,19.65354,1531.6,1531.3,0.066]
[1674077642346,13.05994,1531.4,1531.3,0.066]
[1674077642558,14.66594,1531.4,1531.1,13.6895]
[1674077642752,20.95768759,1531.4,1531.1,13.7555]
[1674077643398,3.0,1531.3,1531.1,13.7555]
[1674077643609,9.53065,1531.3,1531.1,13.7555]
[1674077643827,16.1273,1531.3,1531.1,13.7555]
[1674077644129,16.1273,1531.3,1531.1,0.066]
[1674077644130,28.69859935,1531.3,1531.1,0.066]
[1674077644458,29.06609935,1531.3,1530.8,13.6895]
[1674077644772,29.06609935,1531.3,1530.8,13.7555]
[1674077645354,31.28265922,1531.3,1530.8,13.7555]
[1674077645565,31.28265922,1531.3,1530.8,16.88530943]
[1674077646247,31.28265922,1531.3,1530.8,13.7555]
[1674077647035,4.83174759,1531.2,1530.8,13.7555]
[1674077647283,19.59501,1531.0,1530.8,13.7555]
[1674077647456,22.95275759,1531.0,1530.8,0.066]
[1674077647667,8.7080368,1530.9,1530.7,0.0045957]
[1674077647935,9.1414368,1530.9,1530.7,0.0045957]
[1674077648140,13.06506,1530.8,1530.7,0.0045957]
[1674077648298,22.66359,1530.8,1530.7,0.0045957]
[1674077650327,28.70423935,1530.8,1530.7,0.0045957]
[1674077650655,28.70423935,1530.8,1530.7,0.00251345]
[1674077651043,30.24423935,1530.8,1530.7,0.00251345]
[1674077651397,30.61163935,1530.8,1530.7,0.00251345]
[1674077654125,19.79020759,1530.8,1530.7,0.00251345]
[1674077655361,26.32273759,1530.8,1530.7,0.00251345]
[1674077655768,27.85773759,1530.8,1530.7,0.00251345]
[1674077656549,28.53929746,1530.8,1530.7,0.00251345]
[1674077659017,32.41993732,1530.8,1530.0,0.04979294]
[1674077659263,3.29174759,1530.3,1530.0,0.04979294]
[1674077659485,22.89701759,1530.2,1530.0,0.04979294]
[1674077659697,25.89830759,1530.1,1530.0,0.04979294]
[1674077660016,25.96430759,1530.1,1530.0,0.04979294]
[1674077660351,22.67256,1530.1,1530.0,0.04979294]
[1674077660646,3.066,1530.1,1530.0,0.24390409]
[1674077660866,6.60109,1530.2,1530.0,1.24390409]
[1674077661013,0.066,1530.2,1530.0,2.77190409]
[1674077661227,6.59972,1530.6,1530.2,0.066]
[1674077661651,6.96702,1530.6,1530.2,0.066]
[1674077661854,6.96702,1530.6,1530.2,3.0439549]
[1674077662171,3.0,1530.5,1530.2,9.5789749]
[1674077662378,0.066,1530.6,1530.4,1.82831862]
[1674077662588,6.53326,1530.7,1530.5,2.27983186]
[1674077662589,0.066,1530.7,1530.5,2.27983186]
[1674077662799,6.59874,1530.8,1530.5,0.18283186]
[1674077663053,6.59874,1530.8,1530.3,0.066]
[1674077663054,22.89081759,1530.7,1530.3,0.066]
[1674077663277,22.95681759,1530.7,1530.2,5.42847352]
[1674077663587,22.95681759,1530.7,1530.3,0.54284735]
[1674077663751,3.0,1530.6,1530.3,0.54284735]
[1674077663964,16.06715,1530.6,1530.3,0.54284735]
[1674077664204,16.13315,1530.6,1530.3,0.54649897]
[1674077665753,25.95862759,1530.6,1530.3,0.54649897]
[1674077665977,27.49662759,1530.6,1530.3,0.00365162]
[1674077669054,26.13864,1530.3,1530.1,0.0705957]
[1674077669211,7.81201159,1530.2,1530.1,0.0545957]
[1674077669420,27.86941759,1530.2,1530.1,0.0045957]
[1674077671936,22.86941759,1530.2,1530.1,0.0045957]
[1674077672211,26.16116518,1530.2,1530.1,0.0045957]
[1674077679828,13.13618,1530.2,1530.1,1.0585957]
[1674077680092,0.066,1530.2,1530.1,1.17308666]
[1674077680243,13.13552,1530.3,1530.1,1.17308666]
[1674077680466,6.60066,1530.3,1530.2,2.21430867]
[1674077680934,6.60066,1530.3,1530.1,0.0082478]
[1674077681153,7.83074759,1530.2,1530.1,0.0045957]
[1674077681322,27.50201759,1530.2,1530.1,0.0045957]
[1674077682143,24.21027,1530.2,1530.1,0.0045957]
[1674077683721,9.60109,1530.2,1530.1,1.0475957]
[1674077683930,3.066,1530.2,1530.1,1.0475957]
[1674077684295,3.066,1530.4,1530.1,1.0475957]
[1674077684523,3.066,1530.4,1530.1,1.34016643]
[1674077684524,6.29174759,1530.4,1530.1,1.34016643]
[1674077684670,6.35774759,1530.4,1530.1,1.34016643]
[1674077685036,6.35774759,1530.4,1530.1,2.34016643]
[1674077685397,6.35774759,1530.4,1530.1,1.34016643]
[1674077685611,6.35774759,1530.4,1530.2,0.13401664]
[1674077685819,0.066,1530.4,1530.2,0.13401664]
[1674077686094,24.67405,1530.5,1530.2,0.13401664]
[1674077686246,27.96579759,1530.5,1530.2,0.13401664]
[1674077687307,3.0,1530.4,1530.2,0.13401664]
[1674077687552,9.53431,1530.4,1530.2,0.13401664]
[1674077687765,3.066,1530.4,1530.2,0.13401664]
[1674077687983,3.0,1530.4,1530.2,0.13401664]
[1674077690558,3.0,1530.4,1530.2,1.82831862]
[1674077690559,9.53423,1530.4,1530.2,1.82831862]
[1674077690777,3.29174759,1530.3,1530.1,0.0045957]
[1674077691037,16.69110235,1530.2,1530.1,0.0045957]
[1674077691206,16.75710235,1530.2,1530.1,0.0045957]
[1674077691631,19.75710235,1530.2,1530.1,0.0045957]
[1674077696814,26.29219235,1530.2,1530.1,0.0045957]
[1674077700307,23.00044476,1530.2,1530.1,1.0475957]
[1674077700618,23.00044476,1530.2,1530.1,2.87591432]
[1674077700619,0.066,1530.2,1530.1,2.87591432]
[1674077700816,16.81708643,1530.4,1530.1,2.87591432]
[1674077701030,3.0,1530.3,1530.1,2.87591432]
[1674077701200,3.0,1530.3,1530.1,3.82867705]
[1674077703712,3.0,1530.3,1530.1,4.82867705]
[1674077703937,7.28250643,1530.4,1530.1,3.82867705]
[1674077706938,7.28250643,1530.4,1530.1,3.82557854]
[1674077707260,7.28250643,1530.4,1530.2,0.38255785]
[1674077707480,7.28250643,1530.4,1530.2,1.82831862]
[1674077707628,7.28250643,1530.4,1530.2,16.38651862]
[1674077707990,7.28250643,1530.4,1530.2,16.45251862]
[1674077708428,0.066,1530.4,1530.2,16.45251862]
[1674077708568,10.74827643,1530.5,1530.2,22.98750862]
[1674077708772,10.74827643,1530.5,1530.3,2.29875086]
[1674077709022,10.066,1530.5,1530.3,2.29875086]
[1674077709417,10.74827643,1530.5,1530.4,1.82831862]
[1674077710573,10.066,1530.5,1530.4,1.82831862]
[1674077710785,10.74827643,1530.5,1530.4,1.82831862]
[1674077715142,22.08356453,1530.5,1530.2,16.45251862]
[1674077715292,0.68453718,1530.4,1530.2,16.45251862]
[1674077717537,21.30663603,1530.5,1530.2,16.45251862]
[1674077717708,20.28434718,1530.5,1530.2,16.45251862]
[1674077719183,20.28434718,1530.5,1530.2,17.45251862]
[1674077719396,13.75053718,1530.5,1530.2,21.1585462]
[1674077720644,13.75053718,1530.5,1530.2,20.1585462]
[1674077721946,13.75053718,1530.5,1530.3,1.0]
[1674077722842,13.75053718,1530.5,1530.2,20.1585462]
[1674077723050,0.68453718,1530.4,1530.2,16.45251862]
[1674077723588,8.24109603,1530.4,1530.2,16.45251862]
[1674077723796,8.30709603,1530.4,1530.2,16.45251862]
[1674077724573,7.62255885,1530.4,1530.3,0.00149719]
[1674077724899,8.30745754,1530.4,1530.3,0.00149719]
[1674077725319,8.30742649,1530.4,1530.3,0.00149719]
[1674077725656,7.62255885,1530.4,1530.3,0.00149719]
[1674077729095,8.30743292,1530.4,1530.3,0.00149719]
[1674077729539,7.28514407,1530.4,1530.3,0.00149719]
[1674077731043,0.75087407,1530.4,1530.3,1.04449719]
[1674077731253,13.75087407,1530.5,1530.3,2.66489877]
[1674077731742,13.75087407,1530.5,1530.3,3.66489877]
[1674077732671,13.75087407,1530.5,1530.3,2.66489877]
[1674077733135,14.77316292,1530.5,1530.3,2.66489877]
[1674077733946,13.75087407,1530.5,1530.3,2.66489877]
[1674077734358,0.066,1530.5,1530.4,5.1918085]
[1674077734726,4.70716292,1530.6,1530.4,4.2578085]
[1674077734888,4.70716292,1530.6,1530.4,4.1918085]
[1674077735510,4.70716292,1530.6,1530.4,1.82831862]
[1674077735775,1.70716292,1530.5,1530.4,1.82831862]
[1674077736876,1.02228885,1530.5,1530.4,1.82831862]
[1674077737246,11.919268,1530.5,1530.3,0.00149719]
[1674077737467,1.02769778,1530.4,1530.3,0.00149719]
[1674077738076,1.02769778,1530.4,1530.3,1.82981581]
[1674077738298,0.68510734,1530.4,1530.3,1.82981581]
[1674077738683,3.75110734,1530.5,1530.3,1.82981581]
[1674077738933,3.68510734,1530.5,1530.3,8.36447581]
[1674077739253,0.68510734,1530.5,1530.3,14.96513581]
[1674077739874,4.77880512,1530.6,1530.3,19.54595339]
[1674077740083,4.71280512,1530.6,1530.3,19.54595339]
[1674077740412,4.71280512,1530.6,1530.3,26.08061339]
[1674077740572,3.68510734,1530.6,1530.3,26.08061339]
[1674077741563,3.68510734,1530.6,1530.4,1.0]
[1674077741877,3.68510734,1530.6,1530.4,7.53398]
[1674077742090,3.68510734,1530.6,1530.4,6.59998]
[1674077742246,3.68710734,1530.6,1530.4,13.13221]
[1674077742456,3.68510734,1530.6,1530.4,13.13421]
[1674077743304,0.68510734,1530.6,1530.4,13.13421]
[1674077743542,0.68510734,1530.6,1530.4,14.27651016]
[1674077745858,0.68510734,1530.6,1530.5,1.8244741]
[1674077746093,1.77880512,1530.7,1530.5,14.8920941]
[1674077746264,0.68510734,1530.7,1530.5,28.5318941]
[1674077746473,0.68510734,1530.7,1530.5,32.15271153]
[1674077747894,1.71280512,1530.7,1530.5,25.61890153]
[1674077748100,0.68510734,1530.6,1530.5,15.4642741]
[1674077749520,1.71280512,1530.7,1530.5,15.4642741]
[1674077750640,1.71480512,1530.7,1530.5,15.4622741]
[1674077750826,0.68510734,1530.7,1530.5,15.4642741]
[1674077751305,1.71280512,1530.7,1530.5,15.4642741]
[1674077752523,1.71280512,1530.7,1530.5,21.9980741]
[1674077753087,1.71280512,1530.7,1530.5,8.4242741]
[1674077753661,0.68510734,1530.7,1530.5,8.4242741]
[1674077753867,1.71280512,1530.7,1530.5,8.4242741]
[1674077754291,0.68510734,1530.7,1530.5,10.57350151]
[1674077754504,0.68510734,1530.8,1530.5,23.64477265]
[1674077754925,11.77880512,1530.9,1530.5,23.64477265]
[1674077755141,11.77880512,1530.9,1530.7,19.59885]
[1674077755350,10.75110734,1530.9,1530.7,19.66485]
[1674077756096,10.75110734,1530.9,1530.8,1.8244741]
[1674077756309,0.066,1530.9,1530.8,21.4220641]
[1674077756536,0.14378489,1531.0,1530.8,24.44416551]
[1674077756753,0.14378489,1531.0,1530.8,29.27241293]
[1674077757097,0.14378489,1531.0,1530.9,4.073]
[1674077757392,0.14807263,1531.2,1531.0,0.14369999]
[1674077757605,0.14807263,1531.2,1531.1,27.655]
[1674077757783,0.14807263,1531.2,1531.1,28.721]
[1674077757985,0.14807263,1531.2,1531.1,24.0142241]
[1674077758195,0.14807263,1531.2,1531.1,22.4842241]
[1674077758426,0.14807263,1531.2,1531.1,23.810385]
[1674077759961,0.14489062,1531.2,1531.1,23.810385]
[1674077761287,0.14489062,1531.2,1531.1,23.808385]
[1674077761478,0.14489062,1531.2,1531.1,23.810385]
[1674077762302,0.14977266,1531.5,1531.2,1.0]
[1674077762513,0.14977266,1531.5,1531.4,3.3644741]
[1674077762723,0.14977266,1531.5,1531.4,33.77610169]
[1674077762985,0.14977266,1531.5,1531.4,32.84210169]
[1674077764456,0.14977266,1531.5,1531.4,29.7803541]
[1674077764672,0.14977266,1531.5,1531.4,33.10036951]
[1674077765403,0.14977266,1531.5,1531.4,31.56036951]
[1674077765980,0.14977266,1531.5,1531.4,33.08836951]
[1674077767090,0.14977266,1531.5,1531.4,36.3801171]
[1674077767243,0.14977266,1531.5,1531.4,36.6101171]
[1674077768555,0.14977266,1531.5,1531.4,41.6101171]
[1674077770425,0.15487301,1531.6,1531.5,1.0]
[1674077770646,0.15487301,1531.6,1531.5,18.04941977]
[1674077770866,0.15487301,1531.6,1531.5,37.70403977]
[1674077771095,0.15487301,1531.6,1531.5,32.87579235]
[1674077771338,0.15487301,1531.6,1531.5,37.70403977]
[1674077771548,0.15487301,1531.6,1531.5,37.87579235]
[1674077772343,0.29337266,1532.1,1531.6,4.78757923]
[1674077772344,0.14977266,1532.1,1531.6,4.78757923]
[1674077772556,0.14977266,1532.1,1532.0,1.531]
[1674077772776,0.14977266,1532.1,1532.0,21.11323]
[1674077773086,0.14977266,1532.1,1532.0,23.0037041]
[1674077773406,0.14977266,1532.1,1532.0,29.2485971]
[1674077773560,0.14977266,1532.1,1532.0,29.4785971]
[1674077774173,0.14977266,1532.1,1532.0,31.0185971]
[1674077774386,0.18429013,1532.3,1532.0,43.21272763]
[1674077774624,0.18429013,1532.3,1532.2,3.3574741]
[1674077774873,0.18429013,1532.3,1532.2,33.3212091]
[1674077775071,0.18429013,1532.3,1532.2,33.87809221]
[1674077775453,0.18429013,1532.3,1532.2,33.3872091]
[1674077775665,0.18429013,1532.3,1532.2,28.33246151]
[1674077775859,0.18429013,1532.3,1532.2,6.59256]
[1674077776077,0.18429013,1532.3,1532.2,0.066]
[1674077776284,0.18429013,1532.3,1532.2,1.8244741]
[1674077777962,6.85402013,1532.3,1532.2,1.8244741]
[1674077778174,19.73789772,1532.3,1532.0,1.8904741]
[1674077778507,3.82900201,1532.2,1532.0,1.8244741]
[1674077778695,1.0,1532.1,1532.0,1.8244741]
[1674077778906,3.89500201,1532.2,1532.0,1.8244741]
[1674077779160,3.82900201,1532.2,1532.0,1.8244741]
[1674077781114,3.1436,1532.2,1532.0,1.8244741]
[1674077781334,0.1436,1532.2,1532.0,8.3518441]
[1674077781539,0.1436,1532.2,1532.0,8.4178441]
[1674077782227,0.1436,1532.2,1532.0,14.9452541]
[1674077782534,0.32789013,1532.3,1532.0,17.74533551]
[1674077782752,0.32789013,1532.3,1532.0,15.9452541]
[1674077782907,0.32789013,1532.3,1532.0,14.9452541]
[1674077783117,3.61963772,1532.3,1532.0,0.066]
[1674077783334,0.36196377,1532.2,1531.9,1.8244741]
[1674077783664,0.1436,1532.1,1531.9,1.8244741]
[1674077784171,1.1436,1532.1,1531.9,1.8244741]
[1674077784709,0.1436,1532.1,1531.9,1.8244741]
[1674077784922,0.1436,1532.1,1532.0,0.00149719]
[1674077785699,3.2096,1532.2,1532.0,0.00149719]
[1674077785858,0.1436,1532.2,1532.0,0.00149719]
[1674077786070,3.25029013,1532.3,1532.1,1.8244741]
[1674077786071,0.32789013,1532.3,1532.1,1.8244741]
[1674077786522,0.32789013,1532.3,1532.1,21.4052241]
[1674077786523,0.18429013,1532.3,1532.1,21.4052241]
[1674077786744,0.18429013,1532.3,1532.1,21.4712241]
[1674077787137,0.18429013,1532.3,1532.1,23.0092241]
[1674077787347,0.18429013,1532.3,1532.2,16.05642241]
[1674077787558,0.18429013,1532.3,1532.2,35.70210241]
[1674077789318,0.18429013,1532.3,1532.2,38.99385]
[1674077789534,0.18429013,1532.3,1532.2,52.46709742]
[1674077789535,1.3e-07,1532.3,1532.2,52.46709742]
[1674077789848,0.19129013,1532.4,1532.3,1.0]
[1674077790058,0.19129013,1532.4,1532.3,24.46071733]
[1674077790318,0.19129013,1532.4,1532.3,24.52671733]
[1674077790540,0.19129013,1532.4,1532.3,25.35119143]
[1674077790692,0.19129013,1532.4,1532.3,25.12119143]
[1674077791236,0.04567734,1532.5,1532.3,36.82443885]
[1674077791421,0.04567734,1532.5,1532.4,9.73319148]
[1674077791793,0.04567734,1532.5,1532.4,20.09161148]
[1674077791948,0.04567734,1532.5,1532.4,26.61732148]
[1674077792163,0.04567734,1532.5,1532.4,35.25732148]
[1674077792577,0.04567734,1532.5,1532.4,36.79732148]
[1674077792821,0.04567734,1532.5,1532.4,35.26232148]
[1674077793454,0.04567734,1532.5,1532.4,40.26232148]
[1674077794471,0.04567734,1532.5,1532.4,41.79332148]
[1674077795365,0.04567734,1532.5,1532.4,33.38732148]
[1674077795580,0.04567734,1532.5,1532.4,33.15732148]
[1674077796423,0.04567734,1532.5,1532.4,28.15732148]
[1674077796576,0.04567734,1532.5,1532.4,24.86557389]
[1674077796786,0.04567734,1532.5,1532.4,23.32557389]
[1674077797478,0.04567734,1532.5,1532.4,28.32557389]
[1674077800325,0.04567734,1532.5,1532.4,5.066]
[1674077800472,1.57667734,1532.5,1532.4,0.066]
[1674077800687,1.57667734,1532.5,1532.3,6.8904741]
[1674077801148,8.78716468,1532.5,1532.3,6.8904741]
[1674077801463,8.78716468,1532.5,1532.3,1.8904741]
[1674077801464,0.1436,1532.4,1532.3,1.8904741]
[1674077801679,8.87409347,1532.4,1532.3,1.8244741]
[1674077801836,16.15091081,1532.4,1532.3,1.8244741]
[1674077802046,9.62520081,1532.4,1532.3,1.8244741]
[1674077802727,10.65289859,1532.4,1532.3,1.8244741]
[1674077803469,9.96779125,1532.4,1532.3,1.8244741]
[1674077804828,17.8566704,1532.4,1532.3,1.8244741]
[1674077805192,11.3309604,1532.4,1532.3,1.8244741]
[1674077805407,10.30326262,1532.4,1532.3,1.8244741]
[1674077806710,10.30326262,1532.4,1532.2,15.6459741]
[1674077806885,1.70498882,1532.3,1532.2,15.6459741]
[1674077807093,6.22381843,1532.3,1532.2,0.066]
[1674077807337,26.89098429,1532.3,1532.0,1.82597129]
[1674077807572,0.68221782,1532.1,1532.0,1.82597129]
[1674077810869,0.89181782,1532.2,1532.0,1.82597129]
[1674077811081,0.68221782,1532.2,1532.0,9.98798842]
[1674077811288,0.68221782,1532.2,1532.0,10.05398842]
[1674077811557,0.68221782,1532.2,1532.0,3.52657842]
[1674077811713,0.68221782,1532.2,1532.0,3.46057842]
[1674077811920,0.68221782,1532.2,1532.0,16.51530842]
[1674077812134,0.68221782,1532.2,1532.1,1.65153084]
[1674077813346,0.68221782,1532.2,1532.0,16.58130842]
[1674077813499,0.68221782,1532.2,1532.0,10.05389842]
[1674077813715,1.70554454,1532.2,1532.0,1.89197129]
[1674077813911,0.68221782,1532.1,1532.0,1.82597129]
[1674077814122,2.22221782,1532.1,1532.0,1.82597129]
[1674077814375,18.36571491,1532.1,1532.0,0.00149719]
[1674077814601,0.00121022,1532.0,1531.7,15.7288741]
[1674077814790,3.24506829,1532.0,1531.7,15.7288741]
[1674077815336,0.68253135,1531.9,1531.7,15.7288741]
[1674077815552,18.0808519,1532.0,1531.7,15.7288741]
[1674077815699,18.2244519,1532.0,1531.7,15.7288741]
[1674077815906,11.6969319,1532.0,1531.7,15.7288741]
[1674077816169,1.16969319,1531.9,1531.7,15.7288741]
[1674077816397,5.1695219,1532.0,1531.7,15.7288741]
[1674077816592,3.6315219,1532.0,1531.7,15.7288741]
[1674077816751,3.5655219,1532.0,1531.7,13.9044]
[1674077817171,3.5655219,1532.0,1531.7,20.43301]
[1674077817548,0.82734157,1532.0,1531.7,20.43301]
[1674077817693,0.82734157,1532.0,1531.9,1.8244741]
[1674077817905,1.85066829,1532.0,1531.9,1.8244741]
[1674077818377,0.82734157,1532.0,1531.9,1.8244741]
[1674077818590,0.14481022,1532.0,1531.9,1.8244741]
[1674077819017,0.82734157,1532.0,1531.9,1.8244741]
[1674077820995,0.68374157,1532.0,1531.9,1.8244741]
[1674077821184,0.68374157,1532.0,1531.9,8.3523141]
[1674077821532,0.00121022,1532.0,1531.9,9.26018751]
[1674077822378,0.00121022,1532.0,1531.9,22.31586751]
[1674077823634,0.00121022,1532.0,1531.9,37.31086252]
[1674077823807,0.68253135,1532.4,1531.9,39.57046252]
[1674077824026,0.68253135,1532.4,1532.3,1.8244741]
[1674077824242,0.68253135,1532.4,1532.3,8.3506041]
[1674077824455,0.68253135,1532.4,1532.3,8.4166041]
[1674077824791,0.68253135,1532.4,1532.3,1.8904741]
[1674077825002,1.70785807,1532.4,1532.3,1.8244741]
[1674077825153,1.70585807,1532.4,1532.3,1.8244741]
[1674077825358,1.02332672,1532.4,1532.3,1.8244741]
[1674077825573,1.02332672,1532.4,1532.2,13.5442]
[1674077825835,1.70561981,1532.3,1532.2,13.5442]
[1674077826005,1.02332672,1532.3,1532.2,13.5442]
[1674077826217,1.02332672,1532.3,1532.2,15.3686741]
[1674077826690,1.7056236,1532.3,1532.2,15.3686741]
[1674077827220,1.02332672,1532.3,1532.2,15.3686741]
[1674077827600,7.54945672,1532.3,1532.2,15.3686741]
[1674077827833,7.61545672,1532.3,1532.2,15.3686741]
[1674077828046,10.14338702,1532.3,1532.2,1.8904741]
[1674077828371,19.71648617,1532.3,1531.9,1.8904741]
[1674077828582,1.70566641,1532.2,1531.9,16.7541741]
[1674077828736,1.70566641,1532.2,1531.9,0.066]
[1674077828737,1.54,1532.0,1531.9,0.066]
[1674077828947,1.54,1532.0,1531.7,14.9297]
[1674077829195,17.59521,1532.0,1531.7,14.9957]
[1674077829405,20.42611673,1532.0,1531.7,14.9957]
[1674077829645,19.42611673,1532.0,1531.7,14.9957]
[1674077831402,1.0,1531.9,1531.7,14.9957]
[1674077831997,20.44944345,1532.0,1531.7,0.066]
[1674077832206,8.57303435,1531.9,1531.6,1.87705602]
[1674077832412,6.59409,1531.9,1531.6,1.87705602]
[1674077832622,6.59409,1531.9,1531.6,17.02255602]
[1674077832857,6.59409,1531.9,1531.6,17.08855602]
[1674077833403,7.27642969,1531.9,1531.6,17.08855602]
[1674077833569,6.59409,1531.9,1531.6,17.08855602]
[1674077833804,7.27642969,1531.9,1531.6,17.08855602]
[1674077834036,7.27642969,1531.9,1531.6,17.08655602]
[1674077834253,7.27642969,1531.9,1531.6,17.08855602]
[1674077834815,0.066,1531.9,1531.6,26.88177581]
[1674077834981,3.68233969,1532.0,1531.6,43.2317434]
[1674077835865,1.77166641,1532.1,1531.9,1.8244741]
[1674077836050,3.68233969,1532.1,1532.0,2.27944741]
[1674077836231,3.68233969,1532.1,1532.0,2.097]
[1674077836232,0.68233969,1532.1,1532.0,2.097]
[1674077836805,0.68233969,1532.1,1532.0,1.043]
[1674077837128,14.75962641,1532.1,1531.9,1.8244741]
[1674077837278,0.68318279,1532.0,1531.9,1.8244741]
[1674077837943,1.70650951,1532.0,1531.9,1.8244741]
[1674077838557,0.68318279,1532.0,1531.9,1.8244741]
[1674077838911,14.65418718,1532.0,1531.7,0.066]
[1674077839132,8.82508829,1531.9,1531.6,0.05258192]
[1674077839292,30.43015914,1531.8,1531.6,0.05258192]
[1674077839665,25.13973397,1531.7,1531.6,0.05258192]
[1674077839805,26.57285332,1531.7,1531.6,0.05258192]
[1674077840694,25.54751381,1531.7,1531.6,0.05258192]
[1674077840904,28.8392614,1531.7,1531.6,0.05258192]
[1674077841118,30.3792614,1531.7,1531.6,0.05258192]
[1674077841334,29.64888378,1531.7,1531.5,0.05258192]
[1674077841597,7.73903952,1531.6,1531.5,0.05258192]
[1674077841775,24.86325952,1531.6,1531.5,0.05258192]
[1674077842135,23.86325952,1531.6,1531.5,0.05258192]
[1674077843962,23.13270932,1531.6,1531.5,0.05258192]
[1674077845122,31.02703495,1531.6,1531.5,0.05258192]
[1674077846995,32.05036844,1531.6,1531.5,0.05258192]
[1674077848289,30.68515281,1531.6,1531.5,0.05258192]
[1674077848443,32.05036844,1531.6,1531.5,0.05258192]
[1674077848858,3.92,1531.3,1531.1,0.05258192]
[1674077849069,6.53125,1531.1,1530.8,0.05500117]
[1674077849277,3.29174759,1531.0,1530.8,0.05500117]
[1674077849546,22.5963,1530.9,1530.8,0.05500117]
[1674077849735,22.6623,1530.9,1530.8,0.05500117]
[1674077850347,24.0243,1530.9,1530.8,0.05500117]
[1674077853904,27.31604759,1530.9,1530.8,0.05500117]
[1674077856336,24.0243,1530.9,1530.8,0.05500117]
[1674077857971,17.4922,1530.9,1530.8,0.05500117]
[1674077858633,27.31604759,1530.9,1530.8,0.05500117]
[1674077859103,27.54604759,1530.9,1530.8,0.05500117]
[1674077859314,29.54078932,1530.9,1530.8,0.05500117]
[1674077860617,33.22283634,1530.9,1530.8,0.05500117]
[1674077861687,33.22283634,1530.9,1530.8,1.17e-06]
[1674077861888,37.14283634,1530.9,1530.8,1.17e-06]
[1674077862376,0.002,1530.7,1530.3,0.06133577]
[1674077862624,1.362,1530.4,1530.3,0.06133577]
[1674077862779,27.25643759,1530.4,1530.3,0.06133577]
[1674077862993,25.96043759,1530.4,1530.3,0.06133577]
[1674077863958,27.95017932,1530.4,1530.3,0.06133577]
[1674077864357,28.18017932,1530.4,1530.3,0.06133577]
[1674077865656,26.47192691,1530.4,1530.3,0.06133577]
[1674077866353,26.24192691,1530.4,1530.3,0.06133577]
[1674077867721,25.60518518,1530.4,1530.3,0.06133577]
[1674077869207,24.25218518,1530.4,1530.3,0.06133577]
[1674077869450,17.71795518,1530.4,1530.3,0.06133577]
[1674077869619,17.71795518,1530.4,1530.3,1.10433577]
[1674077869833,14.42620759,1530.4,1530.3,1.10433577]
[1674077870466,7.89197759,1530.4,1530.3,1.10433577]
[1674077870719,7.89197759,1530.4,1530.3,1.21476935]
[1674077870879,7.89197759,1530.4,1530.3,0.17176935]
[1674077871087,14.42620759,1530.4,1530.3,0.06133577]
[1674077875174,14.39620759,1530.4,1530.3,0.06133577]
[1674077876552,20.93043759,1530.4,1530.3,0.06133577]
[1674077877219,11.39620759,1530.4,1530.3,1.10433577]
[1674077877429,0.066,1530.4,1530.3,1.21476935]
[1674077877779,10.41809,1530.5,1530.3,1.21476935]
[1674077878747,3.0,1530.4,1530.3,1.21476935]
[1674077880497,2.0,1530.4,1530.3,1.21476935]
[1674077881132,2.0,1530.4,1530.3,2.21476935]
[1674077881355,1.31903319,1530.4,1530.3,2.21476935]
[1674077881611,3.884,1530.5,1530.3,1.21476935]
[1674077881755,3.818,1530.5,1530.3,1.21476935]
[1674077882986,2.818,1530.5,1530.3,1.21476935]
[1674077883336,3.0,1530.4,1530.3,1.21476935]
[1674077885771,16.06846,1530.4,1530.3,0.06133577]
[1674077885983,22.66869,1530.4,1530.3,0.06133577]
[1674077893630,3.066,1530.4,1530.3,0.06133577]
[1674077893840,3.0,1530.4,1530.3,0.06133577]
[1674077894051,22.60269,1530.4,1530.3,0.06133577]
[1674077894353,22.66869,1530.4,1530.3,0.06133577]
[1674077894840,23.34814035,1530.4,1530.3,0.06133577]
[1674077895731,24.36731588,1530.4,1530.3,0.06133577]
[1674077896001,25.89531588,1530.4,1530.3,0.06133577]
[1674077896693,25.89531588,1530.4,1530.3,0.01133577]
[1674077896912,25.21586553,1530.4,1530.3,0.01133577]
[1674077897237,26.58718932,1530.4,1530.3,0.01133577]
[1674077897446,25.56078405,1530.4,1530.3,0.01133577]
[1674077897657,25.90180756,1530.4,1530.3,0.01133577]
[1674077897846,27.27041292,1530.4,1530.3,0.01133577]
[1674077898676,25.56529536,1530.4,1530.3,0.01133577]
[1674077898885,24.0385657,1530.4,1530.3,0.01133577]
[1674077899169,24.0385657,1530.4,1530.3,1.05433577]
[1674077899465,10.62757103,1530.4,1530.3,1.05433577]
[1674077900728,3.7508833,1530.4,1530.3,1.05433577]
[1674077900903,3.6848833,1530.4,1530.3,1.05433577]
[1674077902461,3.6848833,1530.4,1530.3,0.01133577]
[1674077902683,10.56157103,1530.4,1530.3,0.01133577]
[1674077902822,11.31253587,1530.4,1530.3,0.01133577]
[1674077903701,10.62757103,1530.4,1530.3,0.01133577]
[1674077903878,11.99744673,1530.4,1530.3,0.01133577]
[1674077904085,17.5043357,1530.4,1530.3,0.01133577]
[1674077904560,18.5318257,1530.4,1530.3,0.01133577]
[1674077905083,19.20945326,1530.4,1530.3,0.01133577]
[1674077905398,25.74368326,1530.4,1530.3,0.01133577]
[1674077905635,24.0385657,1530.4,1530.3,0.01133577]
[1674077906920,25.74368326,1530.4,1530.3,0.01133577]
[1674077908353,20.74368326,1530.4,1530.3,0.01133577]